lending/lending_fUSD_20250121
["ID","MTS","AMOUNT","RATE_DAILY","PERIOD"]
[349909611,1737492656504,-500.0,0.00021368,2]
[349909612,1737492656513,-500.0,0.00021368,2]
[349909613,1737492656523,-500.0,0.00021368,2]
[349909614,1737492656532,-500.0,0.00021368,2]
[349909615,1737492656542,-500.0,0.00021368,2]
[349909616,1737492656552,-500.0,0.00021368,2]
[349909617,1737492656561,-804.521428,0.00021368,2]
[349909618,1737492656572,-500.0,0.00021368,2]
[349909619,1737492656582,-500.0,0.00021368,2]
[349909620,1737492656592,-287.440176,0.00021368,2]
[349909621,1737492656602,-500.0,0.00021368,2]
[349909622,1737492656611,-500.0,0.00021368,2]
[349909623,1737492656621,-500.0,0.00021368,2]
[349909624,1737492656631,-500.0,0.00021368,2]
[349909625,1737492656640,-500.0,0.00021368,2]
[349909626,1737492656649,-500.0,0.00021368,2]
[349909627,1737492656659,-500.0,0.00021368,2]
[349909628,1737492656669,-500.0,0.00021368,2]
[349909629,1737492656679,-500.0,0.00021368,2]
[349909630,1737492656688,-500.0,0.00021368,2]
[349909631,1737492656698,-500.0,0.00021368,2]
[349909632,1737492656708,-500.0,0.00021368,2]
[349909633,1737492656717,-500.0,0.00021368,2]
[349909634,1737492656727,-500.0,0.00021368,2]
[349909635,1737492656736,-547.77,0.00021368,2]
[349909636,1737492656746,-758.28,0.00021368,2]
[349909637,1737492656755,-500.0,0.00021368,2]
[349909638,1737492656765,-500.0,0.00021368,2]
[349909639,1737492656775,-1516.15,0.00021368,2]
[349909640,1737492656784,-500.0,0.00021368,2]
[349909641,1737492656794,-665.83,0.00021368,2]
[349909642,1737492656805,-578.64,0.00021368,2]
[349909643,1737492656816,-500.0,0.00021368,2]
[349909644,1737492656827,-760.99,0.00021368,2]
[349909645,1737492656837,-500.0,0.00021368,2]
[349909646,1737492656846,-590.49,0.00021368,2]
[349909647,1737492656856,-500.0,0.00021368,2]
[349909648,1737492656867,-689.84,0.00021368,2]
[349909649,1737492656876,-588.93,0.00021368,2]
[349909650,1737492656886,-500.0,0.00021368,2]
[349909651,1737492656896,-1189.55,0.00021368,2]
[349909652,1737492656905,-1472.15,0.00021368,2]
[349909653,1737492656916,-500.0,0.00021368,2]
[349909654,1737492656926,-850.02,0.00021368,2]
[349909655,1737492656935,-500.0,0.00021368,2]
[349909656,1737492656944,-500.0,0.00021368,2]
[349909657,1737492656954,-932.81,0.00021368,2]
[349909658,1737492656963,-500.0,0.00021368,2]
[349909659,1737492656973,-1230.47,0.00021368,2]
[349909660,1737492656982,-602.63,0.00021368,2]
[349909661,1737492656993,-553.22,0.00021368,2]
[349909662,1737492657145,-329.66,0.00021368,2]
[349909663,1737492657162,-500.0,0.00021368,2]
[349909664,1737492657172,-793.57,0.00021368,2]
[349909665,1737492657182,-500.0,0.00021368,2]
[349909666,1737492657192,-500.0,0.00021368,2]
[349909667,1737492657201,-817.33,0.00021368,2]
[349909668,1737492657211,-2144.23,0.00021368,2]
[349909669,1737492657222,-500.0,0.00021368,2]
[349909670,1737492657232,-864.24,0.00021368,2]
[349909671,1737492657242,-500.0,0.00021368,2]
[349909672,1737492657252,-645.12,0.00021368,2]
[349909673,1737492657262,-500.0,0.00021368,2]
[349909674,1737492657272,-318.78,0.00021368,2]
[349909675,1737492657282,-625.15,0.00021368,2]
[349909676,1737492657292,-500.0,0.00021368,2]
[349909677,1737492657301,-592.87,0.00021368,2]
[349909678,1737492657311,-846.45,0.00021368,2]
[349909679,1737492657322,-500.0,0.00021368,2]
[349909680,1737492657331,-500.0,0.00021368,2]
[349909681,1737492657341,-2804.04,0.00021368,2]
[349909682,1737492657351,-500.0,0.00021368,2]
[349909683,1737492657361,-500.0,0.00021368,2]
[349909684,1737492657370,-500.0,0.00021368,2]
[349909685,1737492657380,-500.0,0.00021368,2]
[349909686,1737492657390,-500.0,0.00021368,2]
[349909687,1737492657399,-835.69,0.00021368,2]
[349909688,1737492657409,-500.0,0.00021368,2]
[349909689,1737492657419,-639.8,0.00021368,2]
[349909690,1737492657428,-500.0,0.00021368,2]
[349909691,1737492657438,-597.18,0.00021369,2]
[349909692,1737492657448,-500.0,0.00021369,2]
[349909693,1737492657458,-500.0,0.00021369,2]
[349909694,1737492657467,-151.0,0.00021369,2]
[349909695,1737492657477,-500.0,0.00021369,2]
[349909696,1737492657486,-238.677938,0.00021369,2]
[349909697,1737492657496,-500.0,0.00021369,2]
[349909698,1737492657505,-500.0,0.00021369,2]
[349909699,1737492657515,-797.807729,0.00021369,2]
[349909700,1737492657524,-500.0,0.00021369,2]
[349909701,1737492657533,-797.807723,0.00021369,2]
[349909702,1737492657543,-500.0,0.00021369,2]
[349909703,1737492657554,-500.0,0.00021369,2]
[349909704,1737492657564,-500.0,0.00021369,2]
[349909705,1737492657573,-500.0,0.00021369,2]
[349909706,1737492657583,-500.0,0.00021369,2]
[349909707,1737492657592,-500.0,0.00021369,2]
[349909708,1737492657602,-500.0,0.00021369,2]
[349909709,1737492657612,-256.071057,0.00021369,2]
[349909710,1737492657622,-256.071049,0.00021369,2]
[349909711,1737492657631,-633.57866746,0.00021369,2]
[349909712,1737492657640,-500.0,0.00021369,2]
[349909713,1737492657650,-381.26590011,0.00021369,2]
[349909714,1737492657659,-500.0,0.00021369,2]
[349909715,1737492657671,-500.0,0.00021369,2]
[349909716,1737492657680,-500.0,0.00021369,2]
[349909717,1737492657690,-500.0,0.00021369,2]
[349909718,1737492657699,-500.0,0.00021369,2]
[349909719,1737492657709,-379.49,0.00021369,2]
[349909720,1737492657718,-614.38,0.00021369,2]
[349909721,1737492657728,-249.15,0.00021369,2]
[349909722,1737492657738,-500.0,0.00021369,2]
[349909723,1737492657747,-470.16,0.00021398,2]
[349909724,1737492657756,-438.48,0.00021398,2]
[349909725,1737492657766,-438.48,0.00021398,2]
[349909726,1737492657775,-438.03,0.00021398,2]
[349909727,1737492657785,-5881.8258836,0.000214,2]
[349909728,1737492657794,-379.0,0.000214,2]
[349909729,1737492657803,-2153.54098778,0.000214,2]
[349909730,1737492657813,-226.84631035,0.000214,2]
[349909731,1737492657823,-1234.14309318,0.000214,2]
[349909732,1737492657832,-10999.87293802,0.000214,2]
[349909733,1737492657842,-254.25547343,0.00021405,2]
[349909734,1737492657851,-1488.98,0.00021411,7]
[349909735,1737492657860,-1488.98,0.00021411,7]
[349909736,1737492657870,-1488.98,0.00021411,7]
[349909737,1737492657879,-1488.98,0.00021411,7]
[349909738,1737492657889,-214.40972222,0.00021425,2]
[349909739,1737492657899,-205.49954183,0.00021438,2]
[349909740,1737492657908,-20000.0,0.00021457,2]
[349909741,1737492657921,-151.0,0.00021457,2]
[349909742,1737492657931,-3026.71,0.00021461,2]
[349909743,1737492657940,-500.0,0.00021461,2]
[349909744,1737492657950,-500.0,0.00021461,2]
[349909745,1737492657960,-500.0,0.00021461,2]
[349909746,1737492657970,-500.0,0.00021461,2]
[349909747,1737492657980,-608.59,0.00021461,2]
[349909748,1737492657989,-1370.0,0.00021461,2]
[349909749,1737492657999,-500.0,0.00021461,2]
[349909750,1737492658008,-2581.83,0.00021461,2]
[349909751,1737492658017,-616.98,0.00021461,2]
[349909752,1737492658026,-646.16,0.00021461,2]
[349909753,1737492658036,-500.0,0.00021461,2]
[349909754,1737492658047,-490.01,0.00021461,2]
[349909755,1737492658056,-500.0,0.00021461,2]
[349909756,1737492658066,-500.0,0.00021461,2]
[349909757,1737492658075,-643.67,0.00021461,2]
[349909758,1737492658085,-711.22,0.00021461,2]
[349909759,1737492658094,-500.0,0.00021461,2]
[349909760,1737492658104,-1000.0,0.00021461,2]
[349909761,1737492658113,-500.0,0.00021461,2]
[349909762,1737492658123,-500.0,0.00021461,2]
[349909763,1737492658132,-837.97,0.00021461,2]
[349909764,1737492658142,-668.54,0.00021461,2]
[349909765,1737492658151,-277.78287043,0.00021461,2]
[349909766,1737492658162,-503.95563065,0.00021477,2]
[349909767,1737492658172,-501.59343028,0.00021477,2]
[349909768,1737492658182,-151.0,0.00021479,2]
[349909769,1737492658191,-31227.0,0.00021479,2]
[349909770,1737492658202,-322.42025066,0.00021485,2]
[349909771,1737492658212,-681.50978767,0.0002149,2]
[349909772,1737492658222,-681.50978767,0.0002149,2]
[349909773,1737492658232,-185760.15128423,0.00021497,2]
[349909774,1737492658241,-594.08,0.00021497,2]
[349909775,1737492658251,-49441.57162166,0.00021498,2]
[349909776,1737492658467,-1137.53637781,0.00021498,2]
[349909777,1737492658479,-76166.04263442,0.00021498,2]
[349909778,1737492658491,-161536.79534221,0.00021498,2]
[349909779,1737492658506,-821.33118598,0.00021498,2]
[349909780,1737492659097,-541.7,0.00020272,2]
[349909781,1737492659107,-500.0,0.00020272,2]
[349909782,1737492659118,-500.0,0.00020546,2]
[349909783,1737492659127,-2306.0228533,0.00021132,2]
[349909784,1737492659138,-150.0,0.00021206,2]
[349909785,1737492659147,-94110.46772776,0.00021498,2]
[349909786,1737492659157,-2109.90675436,0.00021498,2]
[349909787,1737492659169,-129164.37270411,0.000215,15]
[349909788,1737492659182,-719.99602774,0.000215,15]
[349909789,1737492659258,-3336.27277169,0.000215,15]
[349909790,1737492659270,-161338.9460002,0.000215,15]
[349909791,1737492660203,-160261.4088377,0.000215,15]
[349909792,1737492660216,-3994.53774006,0.000215,15]
[349909793,1737492660227,-368.30322611,0.000215,15]
[349909794,1737492660238,-1410.53002162,0.000215,15]
[349909795,1737492660250,-6934.64748862,0.000215,15]
[349909796,1737492660493,-33884.41899886,0.000215,15]
[349909797,1737492660633,-2904.06144538,0.000215,15]
[349909798,1737492660644,-263.06580019,0.000215,15]
[349909799,1737492660859,-673.26999999,0.000215,15]
[349909800,1737492660871,-4282.32646722,0.000215,15]
[349909801,1737492660882,-1615.61536307,0.000215,15]
[349909802,1737492660893,-6124.35187002,0.000215,15]
[349909803,1737492660928,-11861.85478473,0.000215,15]
[349909804,1737492661174,-89.63159194,0.00020446,2]
[349909805,1737492661196,-500.0,0.00020445,2]
[349909806,1737492661206,-33473.62768472,0.00020446,2]
[349909807,1737492661216,-259625.80915084,0.000215,15]
[349909808,1737492661984,-44343.25333355,0.000215,15]
[349909809,1737492661995,-911.6563728,0.000215,15]
[349909810,1737492662007,-551.94023746,0.000215,15]
[349909811,1737492662286,-13570.70344089,0.00020552,2]
[349909812,1737492662302,-177.61565417,0.00020272,2]
[349909813,1737492662313,-108.98041369,0.00020552,2]
[349909814,1737492662329,-19883.57542205,0.00020552,2]
[349909815,1737492662339,-14399.56195775,0.000215,15]
[349909816,1737492662350,-3307.8,0.000215,15]
[349909817,1737492662363,-289512.40040851,0.000215,15]
[349909818,1737492662375,-153552.58000001,0.000215,15]
[349909819,1737492670833,245.0,0.000173,5]
[349909820,1737492670859,5313.0,0.000173,5]
[349909821,1737492671079,5558.0,0.000169,3]
[349909822,1737492671334,213.12213967,0.000165,2]
[349909823,1737492702535,5558.0,0.000173,5]
[349909824,1737492702771,5558.0,0.000169,3]
[349909825,1737492734538,5558.0,0.000173,5]
[349909826,1737492735358,5558.0,0.000169,3]
[349909827,1737492767547,5558.0,0.000173,5]
[349909828,1737492767803,5558.0,0.000169,3]
[349909829,1737492799306,5558.0,0.000171,5]
[349909830,1737492799546,5558.0,0.000167,3]
[349909832,1737492831021,5558.0,0.000171,5]
[349909833,1737492831333,5558.0,0.000167,3]
[349909834,1737492862836,5558.0,0.00017,5]
[349909835,1737492863082,1536.0,0.000166,3]
[349909836,1737492998442,150.0,0.00018,3]
[349909841,1737493613337,300.0,0.0001795,5]
[349909842,1737493643207,224.75,0.00010137,2]
[349909844,1737493644131,-342.81392281,0.00015,2]
[349909845,1737493759099,-207.18607719,0.00015,2]
[349909846,1737493759121,-600.0,0.00017,2]
[349909847,1737493759149,-576.84,0.00017324,2]
[349909848,1737493759177,-150.0,0.000185,3]
[349909849,1737493759199,-1338.6494,0.000186,2]
[349909850,1737493760092,-255.72381999,0.000186,2]
[349909857,1737493832100,-387.2089524,0.000186,2]
[349909862,1737493832160,-183.41782761,0.000186,2]
[349909863,1737493832170,-200.0,0.00018887,2]
[349909864,1737493832180,-96.51217239,0.00018924,2]
[349909865,1737493832273,-3270.47782761,0.00018924,2]
[349909866,1737493832283,-269.28,0.00018947,2]
[349909867,1737493832292,-513.7989262,0.00018972,2]
[349909868,1737493832302,-310.16,0.00018972,2]
[349909869,1737493832311,-1283.83,0.00018999,2]
[349909870,1737493832320,-371.27218518,0.00019015,2]
[349909871,1737493832386,-628.72781482,0.00019015,2]
[349909872,1737493832396,-546.06,0.00019052,2]
[349909873,1737493832408,-577.43,0.00019055,2]
[349909874,1737493832425,-250.0,0.00019337,2]
[349909875,1737493832435,-411.949238,0.00019401,2]
[349909876,1737493832444,-250.0,0.00019499,2]
[349909877,1737493832454,-512.00879159,0.0001955,2]
[349909878,1737493832467,-613.83120841,0.0001955,2]
[349909879,1737493832476,-576.84,0.00019588,2]
[349909880,1737493832486,-1141.21,0.00019613,2]
[349909881,1737493832495,-182.43,0.00019652,2]
[349909882,1737493832506,-2074.17,0.00019791,2]
[349909883,1737493832516,-170.13,0.00019875,2]
[349909884,1737493832526,-152.82,0.00019935,2]
[349909885,1737493832536,-156.83,0.00019962,30]
[349909886,1737493832546,-252.46951696,0.00020024,2]
[349909887,1737493832558,-280.78974438,0.00020024,2]
[349909888,1737493832568,-171.38,0.00020029,2]
[349909889,1737493832579,-276.22,0.00020082,2]
[349909890,1737493832590,-3982.20163853,0.00020123,2]
[349909891,1737493832602,-10618.9130502,0.00020123,2]
[349909892,1737493832617,-10611.26936,0.00020123,2]
[349909893,1737493832628,-5904.76510293,0.00020123,2]
[349909927,1737493838109,-901.87,0.00020123,2]
[349909930,1737493838169,-719.68475353,0.00020123,2]
[349909931,1737493838180,-28433.26256832,0.00020123,2]
[349909932,1737493838232,-623.5101471,0.00020123,2]
[349909933,1737493838291,-3259.6396124,0.00020123,2]
[349909934,1737493838351,-9720.35584977,0.00020123,2]
[349909935,1737493838361,-184.6,0.00020139,2]
[349909936,1737493838370,-1047.436,0.00020244,2]
[349909937,1737493838381,-159.458,0.00020244,2]
[349909938,1737493838390,-500.0,0.00020272,2]
[349909939,1737493838400,-500.0,0.00020272,2]
[349909940,1737493838414,-500.0,0.00020272,2]
[349909941,1737493838424,-500.0,0.00020272,2]
[349909942,1737493838433,-500.0,0.00020272,2]
[349909943,1737493838443,-500.0,0.00020272,2]
[349909944,1737493838457,-500.0,0.00020272,2]
[349909945,1737493838466,-502.05437485,0.00020272,2]
[349909946,1737493838476,-500.0,0.00020272,2]
[349909947,1737493838485,-500.0,0.00020272,2]
[349909948,1737493838498,-500.0,0.00020272,2]
[349909949,1737493838507,-500.0,0.00020272,2]
[349909950,1737493838516,-500.0,0.00020272,2]
[349909951,1737493838526,-382.69991141,0.00020272,2]
[349909952,1737493838536,-41742.777224,0.00020272,2]
[349909990,1737493840142,-1153.82920904,0.00020272,2]
[349909991,1737493840257,-529.9,0.00020272,2]
[349909992,1737493840372,-685.4,0.00020272,2]
[349909993,1737493840430,-394.48007972,0.00020272,2]
[349909994,1737493840443,-7908.47809012,0.00020272,2]
[349909995,1737493840542,-1446.45068842,0.00020272,2]
[349909996,1737493840556,-530.3,0.00020272,2]
[349909997,1737493840599,-1061.2,0.00020272,2]
[349910012,1737493843145,-16317.0032043,0.00020272,2]
[349910013,1737493843157,-9020.5003176,0.00020272,2]
[349910014,1737493843168,-163.73756442,0.00020344,2]
[349910015,1737493843181,-754.669843,0.00020444,2]
[349910016,1737493843194,-500.0,0.00020444,2]
[349910017,1737493843207,-269.475165,0.00020444,2]
[349910018,1737493843216,-886.22,0.00020444,2]
[349910019,1737493843227,-161.561958,0.00020444,2]
[349910020,1737493843237,-697.88,0.00020444,2]
[349910021,1737493843247,-529.97,0.00020444,2]
[349910022,1737493843258,-629.71,0.00020444,2]
[349910023,1737493843269,-1040.81,0.00020444,2]
[349910024,1737493843281,-1025.06,0.00020444,2]
[349910025,1737493843293,-732.83,0.00020444,2]
[349910026,1737493843303,-734.83,0.00020444,2]
[349910027,1737493843314,-554.79,0.00020444,2]
[349910028,1737493843325,-1079.08,0.00020444,2]
[349910029,1737493843335,-895.65,0.00020444,2]
[349910030,1737493843345,-500.0,0.00020444,2]
[349910031,1737493843358,-500.0,0.00020444,2]
[349910032,1737493843369,-465.06,0.00020444,2]
[349910033,1737493843382,-500.0,0.00020444,2]
[349910034,1737493843393,-747.7,0.00020444,2]
[349910035,1737493843405,-500.0,0.00020444,2]
[349910036,1737493843416,-1767.07,0.00020444,2]
[349910037,1737493843430,-788.8,0.00020444,2]
[349910038,1737493843442,-1417.58,0.00020444,2]
[349910039,1737493843455,-790.78,0.00020444,2]
[349910040,1737493843466,-500.0,0.00020444,2]
[349910041,1737493843477,-533.68,0.00020444,2]
[349910042,1737493843487,-500.0,0.00020444,2]
[349910043,1737493843499,-727.11,0.00020444,2]
[349910044,1737493843511,-2210.19,0.00020444,2]
[349910045,1737493843522,-883.07,0.00020444,2]
[349910046,1737493843533,-500.0,0.00020444,2]
[349910047,1737493843544,-500.0,0.00020444,2]
[349910048,1737493843555,-500.0,0.00020444,2]
[349910049,1737493843565,-709.95,0.00020444,2]
[349910051,1737493843576,-303.96,0.00020444,2]
[349910053,1737493843588,-500.0,0.00020444,2]
[349910055,1737493843600,-911.32,0.00020444,2]
[349910057,1737493843611,-724.95,0.00020444,2]
[349910059,1737493843622,-500.0,0.00020444,2]
[349910060,1737493843632,-683.64,0.00020444,2]
[349910061,1737493843644,-500.0,0.00020444,2]
[349910062,1737493843654,-500.0,0.00020444,2]
[349910063,1737493843666,-500.0,0.00020444,2]
[349910064,1737493843677,-521.65,0.00020444,2]
[349910065,1737493843688,-316.19280688,0.00020445,2]
[349910066,1737493843698,-527.4,0.00020445,2]
[349910067,1737493843711,-500.0,0.00020445,2]
[349910068,1737493843722,-371.830022,0.00020445,2]
[349910069,1737493843734,-500.0,0.00020445,2]
[349910070,1737493843747,-500.0,0.00020445,2]
[349910071,1737493843757,-500.0,0.00020445,2]
[349910072,1737493843769,-500.0,0.00020445,2]
[349910073,1737493843779,-500.0,0.00020445,2]
[349910074,1737493843791,-500.0,0.00020445,2]
[349910075,1737493843802,-500.0,0.00020445,2]
[349910076,1737493843813,-500.0,0.00020445,2]
[349910077,1737493843824,-500.0,0.00020445,2]
[349910078,1737493843835,-500.0,0.00020445,2]
[349910079,1737493843845,-500.0,0.00020445,2]
[349910080,1737493843855,-500.0,0.00020445,2]
[349910081,1737493843866,-500.0,0.00020445,2]
[349910082,1737493843876,-304.00005952,0.00020445,2]
[349910083,1737493843887,-500.0,0.00020445,2]
[349910084,1737493843897,-1039.85,0.00020445,2]
[349910085,1737493843908,-620.44,0.00020445,2]
[349910086,1737493843918,-534.76,0.00020445,2]
[349910087,1737493843929,-500.0,0.00020445,2]
[349910088,1737493843940,-500.0,0.00020445,2]
[349910089,1737493843951,-949.15,0.00020445,2]
[349910090,1737493843961,-500.0,0.00020445,2]
[349910091,1737493843973,-500.0,0.00020445,2]
[349910092,1737493843983,-500.0,0.00020445,2]
[349910093,1737493843994,-702.19,0.00020445,2]
[349910094,1737493844006,-1717.2308,0.00020446,2]
[349910095,1737493844017,-1457.0451,0.00020446,2]
[349910096,1737493844027,-426.68,0.00020546,2]
[349910097,1737493844038,-500.0,0.00020546,2]
[349910098,1737493844048,-245.92,0.00020546,2]
[349910099,1737493844059,-89.62997345,0.00020546,2]
[349910100,1737493844186,-410.37002655,0.00020546,2]
[349910101,1737493844198,-532.82,0.00020546,2]
[349910102,1737493844209,-2541.4753,0.00020619,2]
[349910103,1737493844220,-160.10165233,0.00020619,2]
[349910104,1737493844230,-500.0,0.00020717,2]
[349910105,1737493844241,-519.81,0.00020717,2]
[349910106,1737493844252,-377.13400342,0.00020717,2]
[349910107,1737493844263,-500.0,0.00020717,2]
[349910108,1737493844274,-754.669843,0.00020718,2]
[349910109,1737493844285,-500.0,0.00020718,2]
[349910110,1737493844295,-269.475165,0.00020718,2]
[349910111,1737493844306,-886.22,0.00020718,2]
[349910112,1737493844316,-697.88,0.00020718,2]
[349910113,1737493844327,-529.97,0.00020718,2]
[349910114,1737493844337,-629.71,0.00020718,2]
[349910115,1737493844348,-1040.81,0.00020718,2]
[349910116,1737493844358,-1025.06,0.00020718,2]
[349910117,1737493844369,-732.83,0.00020718,2]
[349910118,1737493844379,-734.83,0.00020718,2]
[349910119,1737493844389,-554.79,0.00020718,2]
[349910120,1737493844399,-1079.08,0.00020718,2]
[349910121,1737493844416,-895.65,0.00020718,2]
[349910122,1737493844429,-500.0,0.00020718,2]
[349910123,1737493844440,-500.0,0.00020718,2]
[349910124,1737493844451,-500.0,0.00020718,2]
[349910125,1737493844462,-747.7,0.00020718,2]
[349910126,1737493844472,-500.0,0.00020718,2]
[349910127,1737493844482,-1767.07,0.00020718,2]
[349910128,1737493844493,-788.8,0.00020718,2]
[349910129,1737493844505,-1417.58,0.00020718,2]
[349910130,1737493844516,-790.78,0.00020718,2]
[349910131,1737493844527,-500.0,0.00020718,2]
[349910132,1737493844537,-533.68,0.00020718,2]
[349910133,1737493844548,-727.11,0.00020718,2]
[349910134,1737493844559,-2210.19,0.00020718,2]
[349910135,1737493844569,-242.78854664,0.00020718,2]
[349910136,1737493844586,-640.28145336,0.00020718,2]
[349910137,1737493844597,-500.0,0.00020718,2]
[349910138,1737493844608,-500.0,0.00020718,2]
[349910139,1737493844618,-500.0,0.00020718,2]
[349910140,1737493844629,-709.95,0.00020718,2]
[349910141,1737493844639,-2144.48051829,0.00020718,2]
[349910142,1737493844652,-747.55574587,0.00020718,2]
[349910143,1737493844665,-2687.65387444,0.00020718,2]
[349910144,1737493844687,-571.22,0.00020444,2]
[349910145,1737493844698,-9948.78,0.00020718,2]
[349910146,1737493844713,-2452.9152,0.00020718,2]
[349910147,1737493846042,-9113.85514315,0.00020718,2]
[349910148,1737493846051,-500.0,0.00020718,2]
[349910149,1737493846061,-911.32,0.00020718,2]
[349910150,1737493846070,-724.95,0.00020718,2]
[349910151,1737493846079,-500.0,0.00020718,2]
[349910152,1737493846088,-683.64,0.00020718,2]
[349910153,1737493846098,-500.0,0.00020718,2]
[349910154,1737493846107,-500.0,0.00020718,2]
[349910155,1737493846116,-500.0,0.00020718,2]
[349910156,1737493846126,-521.65,0.00020718,2]
[349910157,1737493846135,-571.22,0.00020718,2]
[349910158,1737493846144,-169.01033623,0.00020719,2]
[349910159,1737493846153,-601.38017029,0.00020719,2]
[349910160,1737493846163,-500.0,0.00020719,2]
[349910161,1737493846172,-500.0,0.00020719,2]
[349910162,1737493846181,-500.0,0.00020719,2]
[349910163,1737493846190,-500.0,0.00020719,2]
[349910164,1737493846199,-500.0,0.00020719,2]
[349910165,1737493846210,-500.0,0.00020719,2]
[349910166,1737493846219,-500.0,0.00020719,2]
[349910167,1737493846229,-500.0,0.00020719,2]
[349910168,1737493846238,-1039.85,0.00020719,2]
[349910169,1737493846247,-620.44,0.00020719,2]
[349910170,1737493846256,-534.76,0.00020719,2]
[349910171,1737493846267,-500.0,0.00020719,2]
[349910172,1737493846276,-949.15,0.00020719,2]
[349910173,1737493846286,-500.0,0.00020719,2]
[349910174,1737493846295,-702.19,0.00020719,2]
[349910175,1737493846304,-3500.0,0.0002072,2]
[349910176,1737493846313,-1071.60021197,0.00020802,2]
[349910177,1737493846323,-200.0,0.00020806,2]
[349910178,1737493846333,-641.68733041,0.00020813,2]
[349910179,1737493846342,-500.0,0.00020818,2]
[349910180,1737493846351,-500.0,0.00020818,2]
[349910181,1737493846360,-500.0,0.00020818,2]
[349910182,1737493846369,-500.0,0.00020818,2]
[349910183,1737493846379,-500.0,0.00020818,2]
[349910184,1737493846388,-500.0,0.00020818,2]
[349910185,1737493846397,-302.5407008,0.00020818,2]
[349910186,1737493846406,-500.0,0.00020818,2]
[349910187,1737493846415,-500.0,0.00020818,2]
[349910188,1737493846429,-500.0,0.00020818,2]
[349910189,1737493846438,-500.0,0.00020818,2]
[349910190,1737493846448,-500.0,0.00020818,2]
[349910191,1737493846459,-500.0,0.00020818,2]
[349910192,1737493846468,-500.0,0.00020818,2]
[349910193,1737493846477,-500.0,0.00020818,2]
[349910194,1737493846487,-500.0,0.00020818,2]
[349910195,1737493846498,-500.0,0.00020818,2]
[349910196,1737493846508,-500.0,0.00020818,2]
[349910197,1737493846517,-155.75607615,0.00020818,2]
[349910198,1737493846534,-344.24392385,0.00020818,2]
[349910199,1737493846543,-500.0,0.00020818,2]
[349910200,1737493846553,-567.84,0.00020818,2]
[349910201,1737493846562,-500.0,0.00020818,2]
[349910202,1737493846571,-500.0,0.00020818,2]
[349910203,1737493846580,-350.1371831,0.00020818,2]
[349910204,1737493846592,-149.8628169,0.00020818,2]
[349910205,1737493846601,-133.15718306,0.00020818,2]
[349910206,1737493846613,-366.84281694,0.00020818,2]
[349910207,1737493846622,-500.0,0.00020818,2]
[349910208,1737493846631,-500.0,0.00020818,2]
[349910209,1737493846640,-393.15718314,0.00020818,2]
[349910210,1737493846655,-106.84281686,0.00020818,2]
[349910211,1737493846664,-423.84924574,0.00020818,2]
[349910212,1737493846675,-76.15075426,0.00020818,2]
[349910213,1737493846684,-500.0,0.00020818,2]
[349910214,1737493846694,-500.0,0.00020818,2]
[349910215,1737493846703,-500.0,0.00020818,2]
[349910216,1737493846712,-500.0,0.00020818,2]
[349910217,1737493846722,-500.0,0.00020818,2]